bitfinex/quotes_ETHUSD_20250725
["timestamp","ask_amount","ask_price","bid_price","bid_amount"]
[1753433133993,4.7177,3642.9,3641.6,0.895]
[1753433134274,4.7177,3642.9,3640.3,2.7469778]
[1753433134275,2.74551794,3642.3,3641.4,2.74612659]
[1753433134439,4.388,3642.2,3641.3,0.4561]
[1753433134778,4.39,3642.1,3641.8,2.74582017]
[1753433135086,4.39,3642.0,3641.9,2.74581948]
[1753433135238,0.7779,3642.4,3641.9,1.48978863]
[1753433135438,0.80426837,3642.9,3642.1,0.55]
[1753433135638,0.803,3643.4,3642.9,2.74502764]
[1753433135932,0.803,3643.4,3642.4,0.4561]
[1753433135933,4.39,3643.3,3642.4,0.4561]
[1753433136138,0.803,3643.4,3642.4,0.48355442]
[1753433136339,0.464,3643.8,3642.4,0.48355442]
[1753433136340,4.391,3643.3,3642.6,1.3629]
[1753433136540,4.391,3643.3,3643.0,2.74492802]
[1753433136750,4.391,3643.3,3642.9,2.74499134]
[1753433136970,4.391,3643.3,3643.1,2.74484544]
[1753433137172,4.391,3643.3,3643.2,2.7448397]
[1753433137348,7.3629,3644.3,3643.2,1.16948397]
[1753433137545,4.39,3644.2,3643.3,0.92244764]
[1753433137794,4.39,3644.2,3643.5,2.74455433]
[1753433137795,3.0,3644.1,3643.5,2.74455433]
[1753433137941,4.8658,3644.2,3643.3,0.895]
[1753433138144,4.39,3644.2,3644.1,2.74416179]
[1753433138568,4.39,3644.2,3643.8,0.4561]
[1753433138780,4.39,3644.2,3644.0,2.7442268]
[1753433138981,4.39,3644.2,3644.1,2.74416179]
[1753433139162,0.7599,3644.7,3644.1,0.55]
[1753433139360,0.7626,3645.2,3644.7,2.74364264]
[1753433139573,3.0,3645.0,3644.8,2.74362979]
[1753433139780,4.39226837,3645.1,3645.0,2.74348422]
[1753433140080,2.74289846,3645.8,3645.0,2.74348422]
[1753433140081,0.7747,3646.6,3646.1,2.74260645]
[1753433140385,0.7747,3646.6,3645.5,0.4389]
[1753433140587,1.2505,3647.2,3646.2,2.74255023]
[1753433140745,1.2505,3647.2,3647.0,2.7419741]
[1753433140947,0.7747,3647.2,3647.0,2.7419741]
[1753433141276,0.13806837,3647.1,3646.5,3.33524193]
[1753433141483,0.13806837,3647.1,3647.0,2.7419797]
[1753433141683,0.00126837,3647.1,3647.0,2.7419797]
[1753433141984,0.00126837,3647.1,3647.0,4.35119949]
[1753433142192,0.002,3647.6,3646.8,0.55]
[1753433142350,0.002,3647.6,3646.9,0.1368]
[1753433142351,0.1368,3647.5,3646.9,0.1368]
[1753433142683,0.13806837,3647.5,3647.0,3.19800939]
[1753433142882,0.13806837,3647.5,3647.3,2.74168263]
[1753433143188,0.13806837,3647.5,3647.4,2.741679]
[1753433143346,0.13806837,3647.5,3647.0,3.19806507]
[1753433143552,0.13806837,3647.5,3647.4,2.741679]
[1753433144363,0.13806837,3647.5,3647.1,0.4561]
[1753433144566,0.13806837,3647.5,3647.4,2.741679]
[1753433145049,0.00126837,3647.5,3647.4,3.636679]
[1753433145390,0.002,3647.6,3647.5,3.29160383]
[1753433145563,0.002,3647.6,3647.5,4.21401986]
[1753433145766,0.002,3647.6,3647.5,2.74160383]
[1753433145972,0.002,3647.6,3647.5,3.63660383]
[1753433146151,0.002,3647.6,3647.5,4.18660383]
[1753433146348,0.002,3647.6,3647.5,4.32340383]
[1753433146789,0.002,3647.6,3647.5,2.87840383]
[1753433146956,0.002,3647.6,3647.5,0.1368]
[1753433147156,0.002,3647.6,3647.3,3.35005153]
[1753433147358,0.002,3647.6,3647.1,4.42]
[1753433147602,0.6311,3647.6,3647.1,2.74184365]
[1753433147897,0.1368,3647.2,3647.1,2.74186855]
[1753433149183,0.1368,3647.3,3646.8,0.1368]
[1753433149365,0.6291,3647.3,3646.7,2.74215319]
[1753433149561,2.74182934,3647.2,3646.4,2.74240231]
[1753433149765,0.1368,3647.0,3646.4,2.87920231]
[1753433150102,0.1368,3646.8,3646.3,0.5967]
[1753433150467,0.1368,3646.8,3646.3,1.0682]
[1753433150659,0.1368,3646.8,3646.3,0.9314]
[1753433151388,0.1368,3646.8,3646.2,0.1368]
[1753433151690,0.1368,3646.6,3646.2,2.74257323]
[1753433151893,0.1368,3646.6,3646.2,2.74258131]
[1753433152192,0.1368,3646.6,3646.3,0.9314]
[1753433152355,0.1368,3647.7,3646.6,0.55]
[1753433152651,0.002,3648.8,3647.5,4.18250383]
[1753433152851,0.1368,3648.5,3647.5,8.62491986]
[1753433153051,0.1368,3648.5,3647.5,10.66656545]
[1753433153284,0.4943,3648.6,3647.5,9.52990383]
[1753433153482,0.1368,3648.2,3647.5,9.52990383]
[1753433153676,1e-08,3647.6,3647.5,9.52990383]
[1753433153862,1e-08,3647.6,3647.5,12.52990383]
[1753433154062,0.002,3648.6,3648.5,2.7408524]
[1753433154291,0.002,3648.6,3648.3,2.74095071]
[1753433154652,0.002,3648.6,3648.4,2.74091478]
[1753433154889,0.002,3648.6,3648.5,2.7408524]
[1753433155256,0.002,3648.6,3648.5,3.6722524]
[1753433155657,0.002,3648.6,3648.5,4.2222524]
[1753433155883,0.002,3648.6,3648.5,4.3590524]
[1753433156987,0.002,3648.6,3648.5,10.31646643]
[1753433157301,1e-08,3648.6,3648.5,10.28905791]
[1753433157484,1e-08,3648.8,3648.7,3.29070216]
[1753433157816,1e-08,3649.1,3649.0,3.29047684]
[1753433158000,1e-08,3649.5,3649.0,10.7368816]
[1753433158205,1e-08,3649.5,3649.4,4.09017646]
[1753433158376,0.002,3650.3,3649.6,0.55]
[1753433158591,1e-08,3650.0,3649.9,3.28980109]
[1753433158916,1e-08,3650.0,3649.9,8.50531627]
[1753433159066,1e-08,3650.0,3649.9,5.01871627]
[1753433159274,1e-08,3650.0,3649.9,8.63820109]
[1753433159496,1e-08,3650.0,3649.9,8.77500109]
[1753433159794,1e-08,3650.0,3649.9,8.77700109]
[1753433159991,1e-08,3650.0,3649.9,0.1368]
[1753433160205,1e-08,3650.0,3649.4,0.8]
[1753433160206,0.49230001,3650.0,3649.5,0.1368]
[1753433160382,0.9239,3649.9,3648.7,0.4599]
[1753433160584,0.9239,3649.9,3648.9,0.1368]
[1753433160585,2.87697559,3649.5,3648.9,0.1368]
[1753433160786,0.4923,3649.4,3648.4,4.8895]
[1753433161111,1e-08,3650.0,3648.5,0.95880852]
[1753433161285,0.1368,3649.3,3648.8,0.1368]
[1753433161472,2.73985606,3649.9,3648.9,3.67193076]
[1753433161673,0.1368,3649.8,3649.2,0.1368]
[1753433161878,0.1368,3649.8,3648.6,4.422]
[1753433161879,0.4923,3649.7,3648.6,0.4715]
[1753433162176,0.1368,3649.2,3648.9,2.74052861]
[1753433164402,1e-08,3650.0,3649.9,4.35344253]
[1753433164615,1e-08,3650.0,3649.9,4.38084054]
[1753433164790,1e-08,3650.0,3649.9,5.56518566]
[1753433164989,1e-08,3650.3,3650.2,4.08787591]
[1753433165313,1e-08,3650.3,3650.2,8.52087591]
[1753433165517,1e-08,3650.3,3650.2,8.65767591]
[1753433165815,1e-08,3650.3,3650.2,11.11976945]
[1753433166422,1e-08,3650.5,3650.4,3.28942581]
[1753433166778,1e-08,3650.5,3650.4,7.35762581]
[1753433166985,1e-08,3650.5,3650.4,8.16092581]
[1753433167204,1e-08,3650.5,3650.4,9.84714534]
[1753433168417,0.002,3652.1,3652.0,3.28822562]
[1753433168624,0.002,3652.1,3652.0,4.21942562]
[1753433168825,0.002,3652.1,3652.0,5.15082562]
[1753433169122,0.002,3652.1,3652.0,9.60672257]
[1753433169320,0.002,3652.1,3652.0,0.6868]
[1753433169818,0.002,3652.1,3651.4,0.4599]
[1753433170024,0.4943,3652.1,3651.6,2.87526957]
[1753433170347,0.4943,3652.1,3651.6,0.1368]
[1753433170495,0.4943,3652.1,3651.7,4.99097]
[1753433170688,0.4923,3652.0,3651.6,0.1368]
[1753433170886,0.1368,3651.9,3651.3,4.433]
[1753433171090,2.8751155,3651.9,3651.3,4.433]
[1753433171285,0.1368,3651.9,3651.3,4.433]
[1753433171491,0.1368,3651.9,3651.4,0.1368]
[1753433171707,0.1368,3651.9,3651.4,0.6083]
[1753433171939,0.4923,3651.8,3650.9,7.17205064]
[1753433172140,2.87527317,3651.7,3651.1,0.1368]
[1753433172444,0.1368,3651.7,3651.1,4.432]
[1753433172644,0.4923,3651.6,3650.5,1.2714]
[1753433172852,2.73889226,3651.2,3650.4,2.73941608]
[1753433173014,2.87571271,3651.1,3650.5,0.1368]
[1753433173209,0.6291,3651.1,3650.5,0.1368]
[1753433173932,0.4923,3651.1,3650.0,1.2328]
[1753433174242,2.73920337,3650.7,3650.1,0.16927]
[1753433174444,0.4923,3651.0,3650.2,2.7395226]
[1753433174745,0.4923,3651.0,3650.1,3.28963773]
[1753433174940,2.73919358,3650.8,3650.1,0.55]
[1753433175141,2.73919358,3650.8,3650.2,0.9314]
[1753433175342,0.7625,3651.5,3650.6,0.55]
[1753433175557,0.4923,3651.4,3650.5,3.21085077]
[1753433175853,0.4923,3651.4,3650.5,0.4715]
[1753433176142,2.73876262,3651.3,3650.6,2.73926433]
[1753433176329,0.7625,3651.5,3650.9,2.73903106]
[1753433176531,0.7625,3651.5,3650.9,0.55]
[1753433176740,1.2976,3651.9,3651.2,2.73881872]
[1753433177057,0.002,3651.5,3651.2,1.10717158]
[1753433177231,0.002,3651.5,3651.1,0.027389]
[1753433177560,0.002,3651.5,3650.3,2.73947154]
[1753433177561,0.8053,3651.3,3650.3,2.73950086]
[1753433177759,2.73904288,3651.0,3650.1,0.86502155]
[1753433177917,2.73917793,3650.8,3650.1,0.55]
[1753433178259,3.22727365,3650.9,3650.1,0.55]
[1753433178443,2.73914739,3650.8,3650.1,2.73965096]
[1753433178621,2.73925175,3650.7,3650.2,0.59339434]
[1753433178816,0.4882,3650.6,3650.1,0.55]
[1753433179017,2.73906427,3650.9,3649.7,0.8897]
[1753433179239,0.4882,3650.5,3649.8,0.60877]
[1753433179550,0.4882,3650.5,3649.8,3.34863079]
[1753433179862,2.73942767,3650.4,3649.9,0.55]
[1753433180043,0.4882,3650.3,3649.4,0.4545]
[1753433180222,0.4882,3650.3,3649.2,0.4352]
[1753433180424,0.8119,3650.4,3649.9,2.73974134]
[1753433180633,2.73928983,3650.6,3650.0,1.16367413]
[1753433180861,0.4882,3650.5,3649.4,0.4545]
[1753433181040,2.73972775,3650.0,3649.2,2.74032664]
[1753433181433,0.4882,3649.9,3649.2,2.74032664]
[1753433181636,0.8132,3649.8,3649.2,2.74025465]
[1753433181852,3.55312723,3649.8,3649.1,0.4545]
[1753433182151,3.55307709,3649.8,3649.1,3.19489786]
[1753433182352,0.8132,3649.8,3649.2,2.74027327]
[1753433182894,0.7941,3650.2,3649.6,2.73995489]
[1753433183152,0.7941,3650.2,3649.4,2.74017646]
[1753433183153,0.4882,3650.8,3649.8,0.55]
[1753433183358,2.73933335,3650.6,3649.9,2.73978807]
[1753433183541,2.73921909,3650.7,3649.8,3.28987134]
[1753433183746,0.4882,3650.8,3649.9,3.19427662]
[1753433183946,0.1368,3650.5,3650.2,2.73956451]
[1753433184162,0.7941,3650.9,3650.1,0.55]
[1753433184324,0.7941,3650.9,3650.0,0.1368]
[1753433184325,0.1368,3650.5,3650.0,0.1368]
[1753433184669,0.1368,3650.2,3649.7,0.1368]
[1753433185156,0.4882,3650.1,3649.7,0.1368]
[1753433186150,1.2599,3650.0,3649.0,4.415]
[1753433186328,1.2599,3650.0,3649.4,2.74013458]
[1753433186329,0.1368,3649.8,3649.4,2.74013458]
[1753433186530,0.1368,3649.8,3649.3,0.1368]
[1753433186940,0.625,3649.8,3649.3,0.1368]
[1753433187965,0.4882,3649.7,3649.3,0.1368]
[1753433188477,0.4882,3649.7,3648.9,2.74153374]
[1753433188478,0.4882,3649.6,3648.9,0.001]
[1753433188677,2.74010625,3649.5,3648.9,0.001]
[1753433188840,0.1368,3649.3,3648.9,0.001]
[1753433189041,2.87710034,3649.3,3648.9,0.001]
[1753433189255,0.4882,3649.2,3648.9,0.001]
[1753433189470,0.1368,3649.3,3648.9,0.001]
[1753433189684,0.1368,3649.6,3649.1,2.87720174]
[1753433189973,0.1368,3649.6,3649.2,0.8897]
[1753433190169,0.1368,3649.6,3649.2,3.62995872]
[1753433190468,0.1368,3649.6,3649.3,2.74024256]
[1753433190675,0.1368,3649.6,3649.2,2.74030641]
[1753433190877,0.625,3649.6,3649.1,0.1368]
[1753433191079,0.1368,3649.6,3649.2,3.19482664]
[1753433191266,0.1368,3649.6,3649.2,0.4545]
[1753433191466,0.1368,3649.6,3649.2,2.74031937]
[1753433191639,0.1368,3649.6,3649.1,2.87718916]
[1753433191978,0.625,3649.6,3649.2,2.74026654]
[1753433192151,0.625,3649.6,3649.1,2.87717438]
[1753433192341,0.625,3649.6,3649.2,2.74032399]
[1753433192744,0.625,3649.6,3649.1,2.87717852]
[1753433192975,0.625,3649.6,3649.1,0.1368]
[1753433193156,0.625,3649.6,3649.2,2.74032664]
[1753433193482,0.625,3649.6,3649.1,0.1368]
[1753433193642,0.625,3649.6,3649.1,2.87713848]
[1753433194267,0.8028,3649.4,3648.9,0.001]
[1753433194476,0.1368,3649.2,3648.9,0.001]
[1753433194968,0.4882,3649.1,3648.9,0.001]
[1753433195170,0.1368,3649.0,3648.9,0.001]
[1753433195680,7.65967684,3649.0,3648.9,0.001]
[1753433195891,8.99968102,3649.0,3648.9,0.001]
[1753433196476,5.8504,3649.0,3648.9,0.001]
[1753433196775,8.59087684,3649.0,3648.9,0.001]
[1753433196939,6.3202,3649.0,3648.9,0.001]
[1753433197250,12.06067684,3649.0,3648.9,0.001]
[1753433199977,5.3582,3649.0,3648.9,0.001]
[1753433200479,5.8464,3649.0,3648.9,0.001]
[1753433200782,4.5338,3649.0,3648.9,2.74155194]
[1753433201081,4.396,3649.6,3648.9,1.30166201]
[1753433201270,4.5328,3649.6,3649.5,2.74010138]
[1753433201818,5.021,3649.6,3648.9,0.5923]
[1753433201963,4.396,3649.6,3649.5,2.74010138]
[1753433202484,2.7395997,3650.2,3649.5,2.74010138]
[1753433202485,1.2539,3650.4,3649.8,2.73987615]
[1753433202687,0.1368,3650.0,3649.9,3.6568991]
[1753433202998,0.4882,3650.8,3649.5,0.4545]
[1753433202999,4.5328,3650.5,3649.5,0.4545]
[1753433203200,0.4882,3650.2,3649.1,0.8189]
[1753433203407,0.1368,3649.7,3649.1,0.1368]
[1753433203569,4.398,3650.0,3649.8,2.73987273]
[1753433203766,0.1368,3649.9,3649.8,2.73987273]
[1753433203965,4.398,3650.0,3649.9,3.19430109]
[1753433204297,0.4882,3650.7,3650.1,2.73965096]
[1753433204503,4.397,3650.4,3650.3,2.73944418]
[1753433204707,0.8272,3650.9,3650.8,2.73912567]
[1753433204910,0.1368,3650.9,3650.8,2.73912567]
[1753433205132,4.5328,3650.9,3650.8,3.19362567]
[1753433205265,4.396,3650.9,3650.7,0.1368]
[1753433205574,0.958,3650.8,3649.9,0.1368]
[1753433205770,0.1368,3650.6,3650.2,2.73956373]
[1753433205967,0.1368,3650.6,3649.9,0.1368]
[1753433205968,0.1368,3650.4,3649.9,0.1368]
[1753433206297,4.84928,3650.9,3649.6,0.4545]
[1753433206298,2.73921755,3650.7,3649.6,0.4545]
[1753433206498,0.1368,3650.2,3650.1,2.73964318]
[1753433206801,4.84928,3650.9,3650.4,2.73940945]
[1753433207004,0.1368,3650.4,3650.2,2.73955378]
[1753433207205,0.1368,3650.4,3650.3,3.65850086]
[1753433207514,3.8029,3651.3,3651.2,2.73882559]
[1753433207515,0.8029,3651.3,3651.2,2.73882559]
[1753433207669,0.002,3651.5,3651.2,2.73882559]
[1753433207670,4.398,3651.5,3651.2,2.73882559]
[1753433208000,0.1368,3651.3,3651.2,2.73882559]
[1753433208812,0.1368,3651.3,3650.8,0.479]
[1753433208973,0.1368,3651.3,3650.9,2.73898087]
[1753433209179,0.1368,3651.3,3650.8,0.479]
[1753433209381,0.1368,3651.3,3651.2,2.73882559]
[1753433209618,0.002,3651.5,3651.2,2.73882559]
[1753433209619,0.002,3651.5,3651.4,3.28867557]
[1753433209780,0.002,3651.5,3651.3,2.73875058]
[1753433209982,0.002,3651.5,3651.2,0.1368]
[1753433210294,0.002,3651.5,3651.4,2.73867557]
[1753433210615,0.4849,3651.5,3650.8,4.837]
[1753433210778,0.6197,3651.4,3650.9,2.73898822]
[1753433210982,0.1368,3651.2,3651.1,2.7389006]
[1753433211284,0.002,3651.5,3651.2,2.73882559]
[1753433211598,0.002,3651.5,3651.2,3.65782559]
[1753433211790,0.002,3651.5,3651.4,2.73867557]
[1753433211989,0.002,3651.5,3651.1,0.1368]
[1753433212316,0.7841,3651.2,3650.1,0.1368]
[1753433212518,0.7841,3651.2,3649.4,2.74015628]
[1753433212519,2.73965751,3650.1,3649.1,0.479]
[1753433212706,2.7398034,3649.9,3649.1,0.479]
[1753433213890,0.1368,3650.3,3649.8,0.1368]
[1753433214318,0.1368,3650.3,3650.2,2.73957591]
[1753433214619,0.1368,3650.7,3650.5,2.73934027]
[1753433214785,0.7862,3651.2,3650.7,2.7392007]
[1753433214986,0.6217,3651.5,3650.6,0.1368]
[1753433215198,0.1368,3651.2,3650.9,2.73903758]
[1753433215405,0.002,3651.5,3651.4,2.73867557]
[1753433215930,0.002,3651.5,3651.0,0.919]
[1753433215931,0.6217,3651.5,3651.0,2.87575315]
[1753433216721,0.6217,3651.5,3651.0,0.1368]
[1753433216922,0.1388,3651.5,3651.0,0.1368]
[1753433217127,0.4829,3651.4,3650.9,0.1368]
[1753433217428,0.1368,3651.2,3650.8,2.73910872]
[1753433217628,0.1368,3651.2,3650.8,0.81059087]
[1753433217932,0.1388,3651.5,3650.9,1.0558]
[1753433218088,0.1368,3651.2,3650.7,2.73918057]
[1753433218286,0.1368,3651.2,3650.7,2.87598057]
[1753433218490,0.4829,3651.1,3650.1,0.479]
[1753433218725,0.1368,3650.8,3650.5,2.73927664]
[1753433218924,0.8312,3651.3,3650.5,0.479]
[1753433219111,0.8312,3651.3,3650.7,2.7392007]
[1753433219314,0.002,3651.5,3651.0,2.73897562]
[1753433219537,0.002,3652.3,3652.0,2.73822562]
[1753433219834,0.002,3652.3,3652.0,4.20762562]
[1753433219992,0.002,3652.3,3652.0,5.15400787]
[1753433220198,0.002,3652.3,3652.0,5.94324158]
[1753433220421,0.1388,3653.0,3652.4,2.73791818]
[1753433220739,1.41922346,3654.9,3653.5,4.1012014]
[1753433220910,1.41922346,3654.9,3653.5,11.54557241]
[1753433220911,0.1368,3654.4,3653.5,11.54557241]
[1753433221228,0.1368,3654.4,3653.5,6.58527935]
[1753433221444,0.4829,3654.3,3653.5,5.59527935]
[1753433221734,0.1368,3654.2,3653.5,6.61265036]
[1753433221891,0.8075,3654.9,3653.5,9.58527935]
[1753433222091,0.1368,3654.7,3653.5,9.58527935]
[1753433222297,0.1368,3654.3,3653.5,14.00227935]
[1753433222493,1e-08,3653.6,3653.5,14.00227935]
[1753433223115,0.8245,3655.8,3653.5,14.00227935]
[1753433223116,0.8245,3655.8,3654.9,0.7904]
[1753433223319,0.1368,3655.5,3654.9,0.1368]
[1753433223519,0.4829,3655.4,3654.2,0.44]
[1753433223734,0.1368,3654.8,3654.3,2.8733022]
[1753433223937,2.73646333,3654.4,3653.6,0.479]
[1753433224110,2.73657708,3654.2,3653.6,0.1368]
[1753433224309,0.1368,3654.1,3653.6,2.73695166]
[1753433224508,0.8206,3654.7,3653.7,0.919]
[1753433224719,1.4403,3654.7,3654.0,0.1368]
[1753433225040,2.73575615,3655.3,3654.2,3.28657708]
[1753433225238,0.1368,3655.1,3654.5,0.1368]
[1753433225533,0.002,3656.7,3654.5,0.1368]
[1753433225534,0.8174,3656.3,3656.2,2.73508013]
[1753433225709,0.002,3656.7,3656.2,0.919]
[1753433225914,0.002,3656.7,3656.4,2.73493053]
[1753433226212,0.002,3656.7,3656.4,2.76220732]
[1753433226418,0.002,3656.7,3656.4,0.0273493]
[1753433226733,0.4849,3656.7,3656.2,2.73500585]
[1753433226937,0.4829,3656.6,3655.5,0.479]
[1753433227137,0.8195,3656.4,3655.5,0.479]
[1753433227310,0.4829,3656.3,3655.5,0.479]
[1753433227640,3.0,3656.2,3655.3,0.44]
[1753433227803,1.20165,3656.4,3654.8,4.45906361]
[1753433228138,0.4829,3656.1,3654.9,0.479]
[1753433228340,0.002,3656.7,3655.1,0.55]
[1753433228539,0.002,3656.7,3655.2,4.71065829]
[1753433228840,0.002,3656.7,3655.8,0.55]
[1753433229038,0.002,3656.7,3655.9,0.02735304]
[1753433229213,0.002,3656.7,3655.7,0.479]
[1753433229214,0.4829,3656.6,3655.7,0.479]
[1753433229544,0.8252,3656.4,3655.7,0.479]
[1753433229839,0.4829,3656.3,3655.4,0.804]
[1753433230004,0.8252,3656.4,3655.6,0.55]
[1753433230355,0.4849,3656.7,3656.0,2.73522719]
[1753433230644,0.002,3656.7,3656.0,0.479]
[1753433230801,0.002,3656.7,3656.4,2.73492963]
[1753433231224,0.002,3656.7,3656.5,3.21384578]
[1753433231431,0.002,3656.7,3656.5,0.919]
[1753433231602,0.002,3656.7,3656.6,0.919]
[1753433232016,0.002,3656.7,3655.8,0.479]
[1753433232211,0.7566,3656.5,3655.8,0.479]
[1753433232635,3.4914799,3656.5,3655.8,0.479]
[1753433232810,3.49145864,3656.5,3655.8,0.479]
[1753433233016,0.4829,3656.4,3655.6,0.44]
[1753433233251,0.7566,3656.5,3655.8,2.73532258]
[1753433233454,3.49146512,3656.5,3655.7,3.21444605]
[1753433233634,0.7566,3656.5,3655.8,2.73537939]
[1753433233840,0.7566,3656.5,3656.1,2.73512788]
[1753433234033,0.4849,3656.7,3656.1,0.479]
[1753433234239,0.002,3656.7,3656.1,0.479]
[1753433234434,3.21967294,3656.7,3655.8,2.73531045]
[1753433234759,2.73501653,3656.3,3655.4,3.21461306]
[1753433234939,2.73501923,3656.3,3655.4,3.2146707]
[1753433235146,3.002,3656.7,3655.7,2.7354538]
[1753433235319,3.002,3656.7,3655.8,0.1368]
[1753433235320,0.1368,3656.4,3655.8,0.1368]
[1753433235520,0.4829,3656.4,3655.7,0.479]
[1753433235720,1.10486314,3656.4,3655.5,0.44]
[1753433235958,0.1368,3656.0,3655.5,0.1368]
[1753433236120,0.1368,3656.0,3655.5,2.87239023]
[1753433236453,0.1368,3656.2,3655.8,2.73536061]
[1753433236854,0.1368,3656.2,3655.8,0.4715]
[1753433237033,0.1368,3656.2,3655.7,2.87222499]
[1753433237231,0.1368,3656.2,3655.7,0.1368]
[1753433237438,0.6095,3656.2,3655.7,0.1368]
[1753433237622,0.1368,3656.2,3655.7,0.6083]
[1753433237951,0.6095,3656.2,3655.7,0.1368]
[1753433238356,0.1368,3656.2,3655.8,3.20687939]
[1753433238552,0.1368,3656.2,3655.8,2.73537939]
[1753433238751,0.1368,3656.2,3655.9,0.4715]
[1753433239365,0.1368,3656.2,3656.1,2.73515494]
[1753433239567,0.1368,3656.6,3656.3,2.73500436]
[1753433239776,0.1368,3656.6,3656.2,2.73507467]
[1753433239922,0.1368,3656.6,3656.3,3.20647977]
[1753433240243,0.6095,3656.6,3656.1,0.1368]
[1753433240444,0.7781,3656.4,3654.9,0.7704]
[1753433240646,3.0,3655.8,3655.0,2.98632599]
[1753433240846,3.0,3655.8,3655.1,0.25041942]
[1753433240847,0.1368,3655.5,3655.1,0.25041942]
[1753433241048,0.4727,3655.4,3654.3,0.4601]
[1753433241258,0.1368,3655.1,3654.6,0.1368]
[1753433241446,0.1368,3655.1,3654.7,0.25051401]
[1753433241632,0.1368,3655.1,3654.9,2.73603238]
[1753433241826,0.1368,3655.1,3654.9,3.20753238]
[1753433242027,0.1368,3655.1,3655.0,2.73597811]
[1753433242271,0.7553,3656.2,3655.1,2.73590325]
[1753433242566,0.1368,3656.2,3655.2,1.75957963]
[1753433242868,0.1368,3656.2,3655.7,0.1368]
[1753433243084,0.1368,3656.2,3655.8,0.4715]
[1753433243285,0.1368,3656.2,3656.1,2.73515494]
[1753433243486,5.1863,3656.6,3656.2,2.73506328]
[1753433243693,4.431,3656.6,3656.4,2.73490995]
[1753433243892,4.5678,3656.6,3656.4,2.73490995]
[1753433244096,4.5678,3656.6,3656.1,0.1368]
[1753433244381,0.1368,3656.4,3655.9,2.73527204]
[1753433244584,0.1368,3656.4,3656.2,2.73505817]
[1753433244992,4.431,3656.6,3656.3,0.4715]
[1753433245288,4.5678,3656.6,3656.3,3.20648823]
[1753433245453,4.5678,3656.6,3656.4,2.73493053]
[1753433245651,4.5678,3656.6,3656.1,2.87194899]
[1753433245857,5.0405,3656.6,3656.1,2.73514899]
[1753433246193,5.0405,3656.6,3655.9,2.73524764]
[1753433246194,0.1368,3656.3,3655.9,2.73524764]
[1753433246353,0.8028,3656.2,3656.0,0.25137389]
[1753433246553,0.1368,3656.0,3655.7,2.73543889]
[1753433246750,0.1368,3656.0,3655.7,0.68758364]
[1753433247094,0.4727,3656.5,3655.4,3.53217712]
[1753433247095,0.1368,3656.3,3655.8,2.8721093]
[1753433247277,0.4727,3656.2,3655.8,0.1368]
[1753433247587,0.1368,3655.9,3655.4,0.6083]
[1753433247789,0.1368,3656.1,3655.6,0.1368]
[1753433248007,0.1368,3656.1,3656.0,2.73522975]
[1753433248177,0.1368,3656.1,3655.7,0.25176079]
[1753433248178,0.1368,3656.1,3655.9,2.73528868]
[1753433248498,0.1368,3656.3,3656.1,2.73515494]
[1753433248655,0.1368,3656.3,3656.0,2.73521922]
[1753433248856,0.1368,3656.3,3655.8,0.1368]
[1753433249080,0.1368,3656.3,3656.0,2.73521014]
[1753433249285,0.1368,3656.3,3656.1,0.25250558]
[1753433249487,0.1368,3656.3,3656.2,0.25250558]
[1753433250389,0.002,3656.7,3656.2,0.25250558]
[1753433250390,0.002,3656.7,3656.2,1.18410558]
[1753433250553,0.002,3656.7,3656.3,0.25250558]
[1753433250755,0.002,3656.7,3656.6,2.73478094]
[1753433250954,0.002,3656.7,3656.6,3.68274558]
[1753433251178,0.002,3656.7,3656.6,4.61434558]
[1753433251375,0.002,3656.7,3656.6,5.92134558]
[1753433251599,0.002,3656.7,3656.6,5.89399778]
[1753433251766,0.002,3656.7,3656.6,5.89393771]
[1753433251965,0.002,3656.7,3656.6,2.98722645]
[1753433252165,0.002,3656.7,3656.6,0.25244551]
[1753433252166,1.2786,3656.7,3656.6,0.25244551]
[1753433252390,1.7069,3656.7,3656.6,0.25244551]
[1753433252599,0.903,3656.7,3656.6,0.25244551]
[1753433253005,0.903,3656.7,3656.6,0.25271199]
[1753433253206,0.903,3656.7,3656.6,2.98749293]
[1753433253524,0.903,3656.7,3656.6,3.55983325]
[1753433253813,0.002,3656.7,3656.6,0.25281091]
[1753433254373,0.002,3656.7,3656.6,2.98759185]
[1753433255166,0.8236,3659.2,3657.0,0.55]
[1753433255370,0.8236,3659.2,3658.2,0.7714]
[1753433255673,0.8236,3659.2,3659.1,2.73291246]
[1753433255885,0.8236,3659.6,3659.2,2.73283777]
[1753433256093,0.8236,3659.6,3659.2,2.98591259]
[1753433256290,0.8236,3659.6,3659.2,2.73283777]
[1753433256597,0.002,3659.8,3659.2,2.73283777]
[1753433256770,0.002,3659.8,3659.2,7.17683777]
[1753433256963,0.002,3659.8,3659.2,7.17783777]
[1753433257197,0.002,3659.8,3659.7,2.7324644]
[1753433257363,0.002,3660.5,3660.4,2.73194186]
[1753433257891,0.5067,3660.5,3660.4,2.73194186]
[1753433258103,0.5067,3660.5,3660.4,3.28194186]
[1753433258313,0.5067,3660.5,3660.4,7.73694186]
[1753433258505,0.5067,3660.5,3660.4,8.7865766]
[1753433258710,0.5067,3660.5,3660.4,4.3315766]
[1753433258888,0.5067,3660.5,3660.4,7.18694186]
[1753433259220,0.5067,3660.5,3660.4,7.73694186]
[1753433259783,0.5067,3660.5,3660.4,8.51704186]
[1753433259987,1e-08,3660.7,3660.6,6.2817926]
[1753433260187,1e-08,3660.7,3660.6,8.00667605]
[1753433260390,1e-08,3660.7,3660.6,8.14347605]
[1753433260722,1e-08,3660.7,3660.6,12.59747605]
[1753433261188,1e-08,3660.7,3660.6,0.1368]